[Event "Titled Tuesday Blitz November 22 Early 2022"]
[White "Heinemann, Josefine"]
[Black "Yurovskykh, Oleksandr"]
[WhiteFideId "12900460"]
[BlackFideId "14134020"]
[WhiteElo "2300"]
[BlackElo "2265"]
[Result "0-1"]
[Round "06"]
[TimeControl "180+1"]
[Date "2022.11.23"]
[WhiteClock "0:00:11"]
[BlackClock "0:00:20"]

1. Nf3 {[%clk 0:03:00]}  g6 {[%clk 0:02:59]} 2. d4 {[%clk 0:02:59]}  Bg7 {[%clk 0:03:00]} 3. e4 {[%clk 0:02:58]}  d6 {[%clk 0:03:00]} 4. Nc3 {[%clk 0:02:57]}  a6 {[%clk 0:03:00]} 5. a4 {[%clk 0:02:56]}  b6 {[%clk 0:03:00]} 6. Bd3 {[%clk 0:02:49]}  Bb7 {[%clk 0:03:00]} 7. a5 {[%clk 0:02:49]}  b5 {[%clk 0:03:00]} 8. O-O {[%clk 0:02:48]}  Nd7 {[%clk 0:02:58]} 9. Re1 {[%clk 0:02:46]}  c5 {[%clk 0:02:48]} 10. Bf1 {[%clk 0:02:38]}  cxd4 {[%clk 0:02:45]} 11. Nxd4 {[%clk 0:02:37]}  Ngf6 {[%clk 0:02:45]} 12. Bg5 {[%clk 0:02:23]}  O-O {[%clk 0:02:45]} 13. f3 {[%clk 0:02:15]}  Rc8 {[%clk 0:02:41]} 14. Qd2 {[%clk 0:02:12]}  Ne5 {[%clk 0:02:39]} 15. b3 {[%clk 0:01:59]}  Qc7 {[%clk 0:02:25]} 16. Na2 {[%clk 0:01:52]}  Rfe8 {[%clk 0:02:17]} 17. Nb4 {[%clk 0:01:51]}  Nfd7 {[%clk 0:02:11]} 18. Be3 {[%clk 0:01:49]}  Nc5 {[%clk 0:02:11]} 19. Rec1 {[%clk 0:01:35]}  Ne6 {[%clk 0:02:05]} 20. Nxe6 {[%clk 0:01:29]}  fxe6 {[%clk 0:02:06]} 21. Bd4 {[%clk 0:01:29]}  Qd7 {[%clk 0:01:36]} 22. f4 {[%clk 0:00:47]}  Nc6 {[%clk 0:01:32]} 23. Bxg7 {[%clk 0:00:48]}  Kxg7 {[%clk 0:01:32]} 24. Nxc6 {[%clk 0:00:46]}  Bxc6 {[%clk 0:01:31]} 25. Bd3 {[%clk 0:00:46]}  Qb7 {[%clk 0:01:31]} 26. Qe2 {[%clk 0:00:45]}  Qa7+ {[%clk 0:01:24]} 27. Kh1 {[%clk 0:00:44]}  Qd4 {[%clk 0:01:24]} 28. h4 {[%clk 0:00:42]}  Qc3 {[%clk 0:01:23]} 29. h5 {[%clk 0:00:39]}  Rf8 {[%clk 0:01:24]} 30. hxg6 {[%clk 0:00:39]}  hxg6 {[%clk 0:01:24]} 31. g3 {[%clk 0:00:38]}  e5 {[%clk 0:01:23]} 32. fxe5 {[%clk 0:00:34]}  Qxe5 {[%clk 0:01:24]} 33. Kg2 {[%clk 0:00:34]}  Rf6 {[%clk 0:01:01]} 34. Rf1 {[%clk 0:00:32]}  Rcf8 {[%clk 0:01:01]} 35. Rxf6 {[%clk 0:00:32]}  exf6 {[%clk 0:00:56]} 36. Re1 {[%clk 0:00:27]}  Rh8 {[%clk 0:00:55]} 37. Qe3 {[%clk 0:00:20]}  Qe7 {[%clk 0:00:39]} 38. Kg1 {[%clk 0:00:20]}  Qd7 {[%clk 0:00:32]} 39. Rf1 {[%clk 0:00:16]}  Rh3 {[%clk 0:00:22]} 40. Qf4 {[%clk 0:00:16]}  Qe6 {[%clk 0:00:19]} 41. Kf2 {[%clk 0:00:15]}  Bd7 {[%clk 0:00:18]} 42. Ke1 {[%clk 0:00:14]}  Qe5 {[%clk 0:00:18]} 43. Qxe5 {[%clk 0:00:13]}  dxe5 {[%clk 0:00:19]} 44. Kf2 {[%clk 0:00:13]}  Be6 {[%clk 0:00:17]} 45. Kg2 {[%clk 0:00:13]}  Rh8 {[%clk 0:00:17]} 46. c4 {[%clk 0:00:12]}  Bh3+ {[%clk 0:00:17]} 47. Kf2 {[%clk 0:00:11]}  Bxf1 {[%clk 0:00:18]} 48. Kxf1 {[%clk 0:00:11]}  b4 {[%clk 0:00:19]} 49. c5 {[%clk 0:00:11]}  Rc8 {[%clk 0:00:19]} 50. Bxa6 {[%clk 0:00:11]}  Rxc5 {[%clk 0:00:20]} 0-1


[Site "https://www.chess.com"]

[Event "Titled Tuesday Blitz November 22 Early 2022"]
[White "Ibarra Jerez, Jose Carlos"]
[Black "Drygalov, Sergey"]
[WhiteFideId "2226332"]
[BlackFideId "24171743"]
[WhiteElo "2638"]
[BlackElo "2528"]
[Result "1-0"]
[Round "06"]
[TimeControl "180+1"]
[Date "2022.11.22"]
[WhiteClock "0:01:05"]
[BlackClock "0:00:29"]

1. e4 {[%clk 0:03:00]}  c5 {[%clk 0:02:59]} 2. Nc3 {[%clk 0:03:00]}  d6 {[%clk 0:02:58]} 3. d4 {[%clk 0:03:01]}  cxd4 {[%clk 0:02:58]} 4. Qxd4 {[%clk 0:03:01]}  Nc6 {[%clk 0:02:58]} 5. Qd2 {[%clk 0:03:02]}  Nf6 {[%clk 0:02:54]} 6. b3 {[%clk 0:03:02]}  e6 {[%clk 0:02:55]} 7. Bb2 {[%clk 0:03:02]}  d5 {[%clk 0:02:55]} 8. exd5 {[%clk 0:03:01]}  exd5 {[%clk 0:02:56]} 9. O-O-O {[%clk 0:02:57]}  Bb4 {[%clk 0:02:56]} 10. a3 {[%clk 0:02:47]}  Bxc3 {[%clk 0:02:28]} 11. Qxc3 {[%clk 0:02:46]}  O-O {[%clk 0:02:21]} 12. Nf3 {[%clk 0:02:45]}  Bg4 {[%clk 0:02:14]} 13. h3 {[%clk 0:02:41]}  Bh5 {[%clk 0:02:14]} 14. g4 {[%clk 0:02:40]}  Bg6 {[%clk 0:02:13]} 15. Bd3 {[%clk 0:02:20]}  Rc8 {[%clk 0:02:03]} 16. g5 {[%clk 0:02:13]}  Nh5 {[%clk 0:01:46]} 17. Kb1 {[%clk 0:02:11]}  a5 {[%clk 0:01:40]} 18. Qd2 {[%clk 0:02:04]}  Kh8 {[%clk 0:01:19]} 19. Bxg6 {[%clk 0:01:52]}  fxg6 {[%clk 0:01:20]} 20. Ne5 {[%clk 0:01:52]}  Qc7 {[%clk 0:01:01]} 21. Rhe1 {[%clk 0:01:45]}  a4 {[%clk 0:00:46]} 22. b4 {[%clk 0:01:42]}  Nf4 {[%clk 0:00:41]} 23. Nxc6 {[%clk 0:01:40]}  bxc6 {[%clk 0:00:37]} 24. Be5 {[%clk 0:01:37]}  Qf7 {[%clk 0:00:37]} 25. Bd6 {[%clk 0:01:34]}  Ng2 {[%clk 0:00:33]} 26. Bxf8 {[%clk 0:01:21]}  Nxe1 {[%clk 0:00:33]} 27. Bxg7+ {[%clk 0:01:20]}  Qxg7 {[%clk 0:00:33]} 28. Rxe1 {[%clk 0:01:21]}  Rf8 {[%clk 0:00:33]} 29. Re6 {[%clk 0:01:17]}  Qd7 {[%clk 0:00:31]} 30. Qc3+ {[%clk 0:01:13]}  Qg7 {[%clk 0:00:30]} 31. Qxg7+ {[%clk 0:01:08]}  Kxg7 {[%clk 0:00:30]} 32. Rxc6 {[%clk 0:01:09]}  Rxf2 {[%clk 0:00:30]} 33. Rc7+ {[%clk 0:01:06]}  Kg8 {[%clk 0:00:29]} 34. b5 {[%clk 0:01:05]} 1-0


[Site "https://www.chess.com"]

[Event "Titled Tuesday Blitz November 22 Early 2022"]
[White "Ilkhomi, Jaloliddin"]
[Black "Krysa, Leandro"]
[WhiteFideId "14700948"]
[BlackFideId "116807"]
[WhiteElo "2045"]
[BlackElo "2485"]
[Result "0-1"]
[Round "06"]
[TimeControl "180+1"]
[Date "2022.11.23"]
[WhiteClock "0:00:17"]
[BlackClock "0:00:12"]

1. d4 {[%clk 0:03:00]}  Nf6 {[%clk 0:02:59]} 2. Nf3 {[%clk 0:02:58]}  g6 {[%clk 0:02:59]} 3. g3 {[%clk 0:02:55]}  Bg7 {[%clk 0:02:52]} 4. Bg2 {[%clk 0:02:55]}  O-O {[%clk 0:02:42]} 5. O-O {[%clk 0:02:55]}  d5 {[%clk 0:02:42]} 6. b3 {[%clk 0:02:52]}  c5 {[%clk 0:02:40]} 7. e3 {[%clk 0:02:51]}  cxd4 {[%clk 0:02:40]} 8. exd4 {[%clk 0:02:52]}  Nc6 {[%clk 0:02:40]} 9. Bb2 {[%clk 0:02:52]}  Bf5 {[%clk 0:02:39]} 10. a3 {[%clk 0:02:49]}  Rc8 {[%clk 0:02:39]} 11. Nbd2 {[%clk 0:02:48]}  Qb6 {[%clk 0:02:12]} 12. c4 {[%clk 0:02:32]}  Rfd8 {[%clk 0:02:04]} 13. c5 {[%clk 0:02:32]}  Qa6 {[%clk 0:01:55]} 14. Re1 {[%clk 0:02:29]}  e6 {[%clk 0:01:42]} 15. b4 {[%clk 0:02:24]}  b6 {[%clk 0:01:39]} 16. Ne5 {[%clk 0:01:49]}  Nxe5 {[%clk 0:01:36]} 17. dxe5 {[%clk 0:01:39]}  Nd7 {[%clk 0:01:33]} 18. Bf1 {[%clk 0:01:35]}  Bd3 {[%clk 0:01:32]} 19. cxb6 {[%clk 0:01:19]}  Nxb6 {[%clk 0:01:23]} 20. Bxd3 {[%clk 0:01:19]}  Qxd3 {[%clk 0:01:23]} 21. Nf3 {[%clk 0:01:19]}  Qxd1 {[%clk 0:01:07]} 22. Rexd1 {[%clk 0:01:16]}  Rc2 {[%clk 0:01:05]} 23. Bd4 {[%clk 0:01:11]}  Bh6 {[%clk 0:01:03]} 24. Bxb6 {[%clk 0:01:04]}  axb6 {[%clk 0:00:57]} 25. Nd4 {[%clk 0:01:04]}  Rc4 {[%clk 0:00:54]} 26. f4 {[%clk 0:00:48]}  Bf8 {[%clk 0:00:46]} 27. Rac1 {[%clk 0:00:40]}  Rdc8 {[%clk 0:00:40]} 28. Rxc4 {[%clk 0:00:40]}  Rxc4 {[%clk 0:00:41]} 29. Rd3 {[%clk 0:00:37]}  Be7 {[%clk 0:00:34]} 30. Kf2 {[%clk 0:00:37]}  Kf8 {[%clk 0:00:34]} 31. Ke3 {[%clk 0:00:35]}  Ke8 {[%clk 0:00:34]} 32. Kd2 {[%clk 0:00:25]}  Kd7 {[%clk 0:00:33]} 33. Nf3 {[%clk 0:00:20]}  h6 {[%clk 0:00:23]} 34. Rc3 {[%clk 0:00:19]}  Re4 {[%clk 0:00:17]} 35. Re3 {[%clk 0:00:16]}  Rc4 {[%clk 0:00:17]} 36. Rc3 {[%clk 0:00:16]}  Re4 {[%clk 0:00:18]} 37. Re3 {[%clk 0:00:16]}  Rxe3 {[%clk 0:00:14]} 38. Kxe3 {[%clk 0:00:16]}  f6 {[%clk 0:00:14]} 39. Kd3 {[%clk 0:00:14]}  g5 {[%clk 0:00:13]} 40. fxg5 {[%clk 0:00:11]}  hxg5 {[%clk 0:00:11]} 41. exf6 {[%clk 0:00:03]}  Bxf6 {[%clk 0:00:12]} 42. h4 {[%clk 0:00:04]}  gxh4 {[%clk 0:00:10]} 43. gxh4 {[%clk 0:00:04]}  e5 {[%clk 0:00:11]} 44. Ng5 {[%clk 0:00:03]}  e4+ {[%clk 0:00:07]} 45. Ke3 {[%clk 0:00:03]}  b5 {[%clk 0:00:05]} 46. Nf7 {[%clk 0:00:01]}  Ke6 {[%clk 0:00:04]} 47. Nd8+ {[%clk 0:00:01]}  Bxd8 {[%clk 0:00:03]} 48. h5 {[%clk 0:00:02]}  Bg5+ {[%clk 0:00:03]} 49. Kd4 {[%clk 0:00:03]}  Bf6+ {[%clk 0:00:04]} 50. Ke3 {[%clk 0:00:03]}  Ke5 {[%clk 0:00:04]} 51. h6 {[%clk 0:00:03]}  d4+ {[%clk 0:00:05]} 52. Ke2 {[%clk 0:00:04]}  Kf4 {[%clk 0:00:05]} 53. h7 {[%clk 0:00:05]}  Bh8 {[%clk 0:00:05]} 54. a4 {[%clk 0:00:05]}  bxa4 {[%clk 0:00:05]} 55. b5 {[%clk 0:00:05]}  Ke5 {[%clk 0:00:06]} 56. b6 {[%clk 0:00:06]}  Kd6 {[%clk 0:00:07]} 57. b7 {[%clk 0:00:07]}  Kc7 {[%clk 0:00:07]} 58. b8=Q+ {[%clk 0:00:07]}  Kxb8 {[%clk 0:00:07]} 59. Kf2 {[%clk 0:00:08]}  Kc7 {[%clk 0:00:08]} 60. Kg3 {[%clk 0:00:09]}  Kd6 {[%clk 0:00:08]} 61. Kg4 {[%clk 0:00:10]}  Kd5 {[%clk 0:00:09]} 62. Kh5 {[%clk 0:00:11]}  a3 {[%clk 0:00:10]} 63. Kg6 {[%clk 0:00:12]}  a2 {[%clk 0:00:10]} 64. Kf7 {[%clk 0:00:13]}  a1=Q {[%clk 0:00:10]} 65. Kg8 {[%clk 0:00:14]}  Qa7 {[%clk 0:00:09]} 66. Kxh8 {[%clk 0:00:13]}  Qxh7+ {[%clk 0:00:10]} 67. Kxh7 {[%clk 0:00:14]}  e3 {[%clk 0:00:11]} 68. Kg7 {[%clk 0:00:14]}  e2 {[%clk 0:00:12]} 69. Kf7 {[%clk 0:00:15]}  e1=Q {[%clk 0:00:12]} 70. Kg6 {[%clk 0:00:16]}  Qf2 {[%clk 0:00:12]} 71. Kh5 {[%clk 0:00:15]}  Qg2 {[%clk 0:00:11]} 72. Kh4 {[%clk 0:00:15]}  Ke5 {[%clk 0:00:12]} 73. Kh5 {[%clk 0:00:16]}  Kf6 {[%clk 0:00:12]} 74. Kh6 {[%clk 0:00:17]}  Qh2# {[%clk 0:00:12]} 0-1


[Site "https://www.chess.com"]

[Event "Titled Tuesday Blitz November 22 Early 2022"]
[White "Jarmula, Lukasz"]
[Black "Fiol, Fabrice"]
[WhiteFideId "1160664"]
[BlackFideId "611670"]
[WhiteElo "2357"]
[BlackElo "2460"]
[Result "1-0"]
[Round "06"]
[TimeControl "180+1"]
[Date "2022.11.23"]
[WhiteClock "0:00:32"]
[BlackClock "0:00:14"]

1. e4 {[%clk 0:02:03]}  c5 {[%clk 0:02:59]} 2. Nf3 {[%clk 0:02:03]}  e6 {[%clk 0:02:58]} 3. d4 {[%clk 0:02:03]}  cxd4 {[%clk 0:02:59]} 4. Nxd4 {[%clk 0:02:03]}  a6 {[%clk 0:03:00]} 5. c4 {[%clk 0:02:03]}  Qc7 {[%clk 0:02:59]} 6. Nc3 {[%clk 0:02:03]}  d6 {[%clk 0:03:00]} 7. Be2 {[%clk 0:02:03]}  Nf6 {[%clk 0:03:00]} 8. O-O {[%clk 0:02:03]}  Nbd7 {[%clk 0:03:00]} 9. f4 {[%clk 0:02:03]}  b6 {[%clk 0:03:01]} 10. b4 {[%clk 0:02:01]}  Bb7 {[%clk 0:03:01]} 11. Qd3 {[%clk 0:02:01]}  Rc8 {[%clk 0:03:00]} 12. Bb2 {[%clk 0:02:00]}  Be7 {[%clk 0:02:52]} 13. a3 {[%clk 0:02:00]}  O-O {[%clk 0:02:45]} 14. Rac1 {[%clk 0:02:00]}  Qb8 {[%clk 0:02:40]} 15. g4 {[%clk 0:01:59]}  g6 {[%clk 0:02:35]} 16. g5 {[%clk 0:01:57]}  Ne8 {[%clk 0:02:30]} 17. Nf3 {[%clk 0:01:54]}  Nc7 {[%clk 0:02:12]} 18. e5 {[%clk 0:01:48]}  d5 {[%clk 0:02:09]} 19. cxd5 {[%clk 0:01:43]}  Nxd5 {[%clk 0:02:09]} 20. Nxd5 {[%clk 0:01:44]}  Bxd5 {[%clk 0:02:09]} 21. Qxa6 {[%clk 0:01:42]}  Rxc1 {[%clk 0:01:58]} 22. Rxc1 {[%clk 0:01:42]}  Bb7 {[%clk 0:01:50]} 23. Qd3 {[%clk 0:01:40]}  Rd8 {[%clk 0:01:49]} 24. Qe3 {[%clk 0:01:40]}  Qa8 {[%clk 0:01:48]} 25. h4 {[%clk 0:01:36]}  Nb8 {[%clk 0:01:41]} 26. h5 {[%clk 0:01:29]}  b5 {[%clk 0:01:21]} 27. Nh2 {[%clk 0:01:26]}  Qa6 {[%clk 0:01:04]} 28. Ng4 {[%clk 0:01:22]}  Rc8 {[%clk 0:00:57]} 29. Rd1 {[%clk 0:01:18]}  Qc6 {[%clk 0:00:54]} 30. Qh3 {[%clk 0:01:12]}  Qc2 {[%clk 0:00:35]} 31. hxg6 {[%clk 0:01:07]}  hxg6 {[%clk 0:00:32]} 32. Nh6+ {[%clk 0:00:48]}  Kf8 {[%clk 0:00:27]} 33. Nf5 {[%clk 0:00:35]}  Ke8 {[%clk 0:00:15]} 34. Qh8+ {[%clk 0:00:33]}  Bf8 {[%clk 0:00:16]} 35. Nd6+ {[%clk 0:00:34]}  Ke7 {[%clk 0:00:15]} 36. Qf6+ {[%clk 0:00:33]}  Kd7 {[%clk 0:00:14]} 37. Qxf7+ {[%clk 0:00:33]}  Kc6 {[%clk 0:00:14]} 38. Qxb7# {[%clk 0:00:32]} 1-0


[Site "https://www.chess.com"]

[Event "Titled Tuesday Blitz November 22 Early 2022"]
[White "Jeet, Jain"]
[Black "Ostrovskiy, Aleksandr"]
[WhiteFideId "5073022"]
[BlackFideId "2034239"]
[WhiteElo "2067"]
[BlackElo "2340"]
[Result "1-0"]
[Round "06"]
[TimeControl "180+1"]
[Date "2022.11.23"]
[WhiteClock "0:00:17"]
[BlackClock "0:00:08"]

1. d4 {[%clk 0:03:00]}  Nf6 {[%clk 0:02:59]} 2. Nc3 {[%clk 0:02:56]}  d5 {[%clk 0:02:44]} 3. Bg5 {[%clk 0:02:56]}  h6 {[%clk 0:02:43]} 4. Bxf6 {[%clk 0:02:56]}  exf6 {[%clk 0:02:43]} 5. Nf3 {[%clk 0:02:54]}  f5 {[%clk 0:02:40]} 6. e3 {[%clk 0:02:53]}  c6 {[%clk 0:02:41]} 7. Bd3 {[%clk 0:02:51]}  g6 {[%clk 0:02:41]} 8. Ne2 {[%clk 0:02:52]}  Bd6 {[%clk 0:02:37]} 9. c4 {[%clk 0:02:51]}  dxc4 {[%clk 0:02:23]} 10. Bxc4 {[%clk 0:02:49]}  Nd7 {[%clk 0:02:23]} 11. O-O {[%clk 0:02:40]}  O-O {[%clk 0:02:20]} 12. a3 {[%clk 0:02:30]}  Nf6 {[%clk 0:02:20]} 13. Nc3 {[%clk 0:02:29]}  Qe7 {[%clk 0:02:16]} 14. Re1 {[%clk 0:02:24]}  Ne4 {[%clk 0:02:11]} 15. Rc1 {[%clk 0:02:12]}  Re8 {[%clk 0:02:03]} 16. Qb3 {[%clk 0:02:08]}  Kg7 {[%clk 0:01:58]} 17. d5 {[%clk 0:01:56]}  c5 {[%clk 0:01:52]} 18. Rcd1 {[%clk 0:01:48]}  a6 {[%clk 0:01:47]} 19. a4 {[%clk 0:01:48]}  h5 {[%clk 0:01:45]} 20. a5 {[%clk 0:01:43]}  h4 {[%clk 0:01:36]} 21. Na4 {[%clk 0:01:38]}  g5 {[%clk 0:01:25]} 22. Nb6 {[%clk 0:01:38]}  Rb8 {[%clk 0:01:25]} 23. Nxc8 {[%clk 0:01:38]}  Rbxc8 {[%clk 0:01:25]} 24. Nd2 {[%clk 0:01:35]}  Qe5 {[%clk 0:01:14]} 25. Nf3 {[%clk 0:01:34]}  Qe7 {[%clk 0:01:14]} 26. Nd2 {[%clk 0:01:35]}  g4 {[%clk 0:01:10]} 27. Nxe4 {[%clk 0:01:34]}  fxe4 {[%clk 0:01:10]} 28. Qc3+ {[%clk 0:01:14]}  Kg6 {[%clk 0:01:03]} 29. Be2 {[%clk 0:01:02]}  f5 {[%clk 0:00:59]} 30. f4 {[%clk 0:00:49]}  exf3 {[%clk 0:00:50]} 31. gxf3 {[%clk 0:00:49]}  g3 {[%clk 0:00:40]} 32. Bd3 {[%clk 0:00:39]}  gxh2+ {[%clk 0:00:26]} 33. Kh1 {[%clk 0:00:37]}  Bg3 {[%clk 0:00:27]} 34. Re2 {[%clk 0:00:35]}  Qe5 {[%clk 0:00:09]} 35. Qc2 {[%clk 0:00:30]}  Kf6 {[%clk 0:00:09]} 36. Qc4 {[%clk 0:00:22]}  Rcd8 {[%clk 0:00:09]} 37. Bc2 {[%clk 0:00:20]}  Qd6 {[%clk 0:00:09]} 38. e4 {[%clk 0:00:19]}  f4 {[%clk 0:00:07]} 39. b3 {[%clk 0:00:19]}  Re5 {[%clk 0:00:07]} 40. Bd3 {[%clk 0:00:18]}  Qc7 {[%clk 0:00:08]} 41. Qc2 {[%clk 0:00:18]}  Qxa5 {[%clk 0:00:07]} 42. Bc4 {[%clk 0:00:18]}  Qc7 {[%clk 0:00:07]} 43. Qd2 {[%clk 0:00:18]}  Rd6 {[%clk 0:00:06]} 44. Qc2 {[%clk 0:00:18]}  b5 {[%clk 0:00:07]} 45. Bd3 {[%clk 0:00:19]}  Qe7 {[%clk 0:00:06]} 46. Rc1 {[%clk 0:00:19]}  Qc7 {[%clk 0:00:05]} 47. Qxc5 {[%clk 0:00:19]}  Qxc5 {[%clk 0:00:06]} 48. Rxc5 {[%clk 0:00:19]}  Re7 {[%clk 0:00:06]} 49. b4 {[%clk 0:00:19]}  Ke5 {[%clk 0:00:07]} 50. Rc8 {[%clk 0:00:18]}  Rdd7 {[%clk 0:00:06]} 51. Rh8 {[%clk 0:00:18]}  Rc7 {[%clk 0:00:06]} 52. Rh5+ {[%clk 0:00:18]}  Kd4 {[%clk 0:00:07]} 53. Bc2 {[%clk 0:00:18]}  Rc3 {[%clk 0:00:06]} 54. d6 {[%clk 0:00:17]}  Rd7 {[%clk 0:00:04]} 55. Rd5+ {[%clk 0:00:17]}  Kc4 {[%clk 0:00:04]} 56. Red2 {[%clk 0:00:17]}  Ra3 {[%clk 0:00:04]} 57. R5d4+ {[%clk 0:00:17]}  Kc3 {[%clk 0:00:04]} 58. R2d3+ {[%clk 0:00:17]}  Kb2 {[%clk 0:00:02]} 59. Rxa3 {[%clk 0:00:17]}  Kxa3 {[%clk 0:00:02]} 60. e5 {[%clk 0:00:18]}  Bf2 {[%clk 0:00:01]} 61. Rd3+ {[%clk 0:00:16]}  Kb2 {[%clk 0:00:02]} 62. e6 {[%clk 0:00:17]}  Rg7 {[%clk 0:00:01]} 63. Kxh2 {[%clk 0:00:16]}  Bg1+ {[%clk 0:00:01]} 64. Kh3 {[%clk 0:00:16]}  Bf2 {[%clk 0:00:01]} 65. e7 {[%clk 0:00:15]}  Rg3+ {[%clk 0:00:02]} 66. Kh2 {[%clk 0:00:15]}  Bg1+ {[%clk 0:00:02]} 67. Kh1 {[%clk 0:00:16]}  Be3 {[%clk 0:00:02]} 68. e8=Q {[%clk 0:00:15]}  h3 {[%clk 0:00:02]} 69. Rxe3 {[%clk 0:00:14]}  fxe3 {[%clk 0:00:03]} 70. Qxe3 {[%clk 0:00:15]}  Kxc2 {[%clk 0:00:04]} 71. Qe4+ {[%clk 0:00:15]}  Kd2 {[%clk 0:00:04]} 72. Qf4+ {[%clk 0:00:15]}  Ke2 {[%clk 0:00:05]} 73. Qxg3 {[%clk 0:00:15]}  a5 {[%clk 0:00:06]} 74. bxa5 {[%clk 0:00:15]}  b4 {[%clk 0:00:06]} 75. d7 {[%clk 0:00:16]}  b3 {[%clk 0:00:07]} 76. d8=Q {[%clk 0:00:17]}  b2 {[%clk 0:00:08]} 77. Qe5+ {[%clk 0:00:17]}  Kf2 {[%clk 0:00:08]} 78. Qd2+ {[%clk 0:00:17]}  Kf1 {[%clk 0:00:08]} 79. Qee1# {[%clk 0:00:17]} 1-0


[Site "https://www.chess.com"]

[Event "Titled Tuesday Blitz November 22 Early 2022"]
[White "Jobava, Baadur"]
[Black "Akbas, Umut Ata"]
[WhiteFideId "13601520"]
[BlackFideId "44572646"]
[WhiteElo "2582"]
[BlackElo "2192"]
[Result "1-0"]
[Round "06"]
[TimeControl "180+1"]
[Date "2022.11.22"]
[WhiteClock "0:00:07"]
[BlackClock "0:00:07"]

1. b3 {[%clk 0:03:00]}  c5 {[%clk 0:02:56]} 2. Bb2 {[%clk 0:03:01]}  Nc6 {[%clk 0:02:55]} 3. e3 {[%clk 0:03:02]}  a6 {[%clk 0:02:55]} 4. c4 {[%clk 0:03:02]}  Nf6 {[%clk 0:02:52]} 5. Nf3 {[%clk 0:03:02]}  d5 {[%clk 0:02:52]} 6. d4 {[%clk 0:03:01]}  cxd4 {[%clk 0:02:51]} 7. Nxd4 {[%clk 0:02:56]}  Nxd4 {[%clk 0:02:50]} 8. Qxd4 {[%clk 0:02:56]}  e6 {[%clk 0:02:49]} 9. Nc3 {[%clk 0:02:54]}  Be7 {[%clk 0:02:35]} 10. cxd5 {[%clk 0:02:46]}  exd5 {[%clk 0:02:35]} 11. Rd1 {[%clk 0:02:41]}  Be6 {[%clk 0:02:34]} 12. Be2 {[%clk 0:02:41]}  O-O {[%clk 0:02:34]} 13. Bf3 {[%clk 0:02:38]}  Qa5 {[%clk 0:02:32]} 14. O-O {[%clk 0:02:37]}  Rfd8 {[%clk 0:02:32]} 15. h3 {[%clk 0:02:34]}  Rac8 {[%clk 0:02:28]} 16. Na4 {[%clk 0:02:21]}  b5 {[%clk 0:02:17]} 17. Nc3 {[%clk 0:01:52]}  Bc5 {[%clk 0:02:09]} 18. Qh4 {[%clk 0:01:26]}  Ba3 {[%clk 0:02:05]} 19. Bxa3 {[%clk 0:01:20]}  Qxa3 {[%clk 0:02:06]} 20. Qd4 {[%clk 0:01:06]}  Qb2 {[%clk 0:01:36]} 21. Nxb5 {[%clk 0:00:52]}  Qxa2 {[%clk 0:01:36]} 22. Na7 {[%clk 0:00:49]}  Rc7 {[%clk 0:01:30]} 23. Qb6 {[%clk 0:00:41]}  Ne8 {[%clk 0:01:26]} 24. Nc6 {[%clk 0:00:38]}  Rd6 {[%clk 0:01:22]} 25. Qb8 {[%clk 0:00:38]}  Kf8 {[%clk 0:01:07]} 26. Nd4 {[%clk 0:00:38]}  Qa5 {[%clk 0:01:01]} 27. Ra1 {[%clk 0:00:36]}  Qb6 {[%clk 0:01:01]} 28. Qxb6 {[%clk 0:00:34]}  Rxb6 {[%clk 0:01:02]} 29. Be2 {[%clk 0:00:33]}  Bc8 {[%clk 0:00:56]} 30. Ra5 {[%clk 0:00:33]}  Nf6 {[%clk 0:00:55]} 31. Rfa1 {[%clk 0:00:32]}  Ra7 {[%clk 0:00:40]} 32. Rc5 {[%clk 0:00:32]}  Bd7 {[%clk 0:00:39]} 33. Bf3 {[%clk 0:00:32]}  Be6 {[%clk 0:00:36]} 34. Rca5 {[%clk 0:00:30]}  Ne4 {[%clk 0:00:32]} 35. Bxe4 {[%clk 0:00:26]}  dxe4 {[%clk 0:00:32]} 36. b4 {[%clk 0:00:27]}  Bc4 {[%clk 0:00:28]} 37. b5 {[%clk 0:00:26]}  Rab7 {[%clk 0:00:20]} 38. bxa6 {[%clk 0:00:20]}  Ra7 {[%clk 0:00:21]} 39. Rc1 {[%clk 0:00:14]}  Rbxa6 {[%clk 0:00:17]} 40. Rxa6 {[%clk 0:00:12]}  Bxa6 {[%clk 0:00:18]} 41. Ra1 {[%clk 0:00:11]}  Ra8 {[%clk 0:00:18]} 42. g4 {[%clk 0:00:10]}  Bb7 {[%clk 0:00:18]} 43. Rb1 {[%clk 0:00:10]}  Bd5 {[%clk 0:00:19]} 44. Rb5 {[%clk 0:00:10]}  Rd8 {[%clk 0:00:19]} 45. Kg2 {[%clk 0:00:10]}  g6 {[%clk 0:00:18]} 46. Kg3 {[%clk 0:00:10]}  Kg7 {[%clk 0:00:18]} 47. g5 {[%clk 0:00:11]}  Bc4 {[%clk 0:00:15]} 48. Rb7 {[%clk 0:00:10]}  Rc8 {[%clk 0:00:11]} 49. Re7 {[%clk 0:00:09]}  Rc5 {[%clk 0:00:11]} 50. h4 {[%clk 0:00:08]}  Bd5 {[%clk 0:00:11]} 51. Re5 {[%clk 0:00:07]}  f6 {[%clk 0:00:10]} 52. Re7+ {[%clk 0:00:07]}  Kf8 {[%clk 0:00:06]} 53. gxf6 {[%clk 0:00:07]}  Rc6 {[%clk 0:00:07]} 54. Rxh7 {[%clk 0:00:06]}  Rxf6 {[%clk 0:00:07]} 55. Rd7 {[%clk 0:00:06]}  Bf7 {[%clk 0:00:08]} 56. Rc7 {[%clk 0:00:06]}  Bd5 {[%clk 0:00:08]} 57. Rc5 {[%clk 0:00:06]}  Rd6 {[%clk 0:00:08]} 58. Kf4 {[%clk 0:00:06]}  Rd8 {[%clk 0:00:08]} 59. Ke5 {[%clk 0:00:07]}  Bf7 {[%clk 0:00:07]} 60. Kxe4 {[%clk 0:00:06]}  Kg7 {[%clk 0:00:08]} 61. Kf4 {[%clk 0:00:06]}  Rh8 {[%clk 0:00:07]} 62. Kg3 {[%clk 0:00:07]}  Ra8 {[%clk 0:00:07]} 63. Rg5 {[%clk 0:00:07]}  Kf6 {[%clk 0:00:07]} 64. f4 {[%clk 0:00:07]}  Ra3 {[%clk 0:00:07]} 65. Kf3 {[%clk 0:00:07]}  Ra1 {[%clk 0:00:07]} 66. Re5 {[%clk 0:00:07]}  Rh1 {[%clk 0:00:08]} 67. Kg3 {[%clk 0:00:07]}  Rg1+ {[%clk 0:00:08]} 68. Kf2 {[%clk 0:00:08]}  Rh1 {[%clk 0:00:08]} 69. Nf3 {[%clk 0:00:08]}  Bc4 {[%clk 0:00:07]} 70. Rc5 {[%clk 0:00:08]}  Bb3 {[%clk 0:00:06]} 71. Rc6+ {[%clk 0:00:08]}  Kg7 {[%clk 0:00:07]} 72. Ne5 {[%clk 0:00:07]}  Rxh4 {[%clk 0:00:04]} 73. Rxg6+ {[%clk 0:00:07]}  Kh7 {[%clk 0:00:04]} 74. Rb6 {[%clk 0:00:08]}  Bd5 {[%clk 0:00:05]} 75. Kg3 {[%clk 0:00:08]}  Rh1 {[%clk 0:00:05]} 76. Rd6 {[%clk 0:00:08]}  Be4 {[%clk 0:00:05]} 77. Rd7+ {[%clk 0:00:08]}  Kg8 {[%clk 0:00:05]} 78. Rc7 {[%clk 0:00:06]}  Kf8 {[%clk 0:00:05]} 79. Kg4 {[%clk 0:00:05]}  Rg1+ {[%clk 0:00:04]} 80. Kh4 {[%clk 0:00:05]}  Bf5 {[%clk 0:00:04]} 81. Rf7+ {[%clk 0:00:04]}  Kg8 {[%clk 0:00:05]} 82. Rxf5 {[%clk 0:00:05]}  Rh1+ {[%clk 0:00:06]} 83. Kg5 {[%clk 0:00:05]}  Rg1+ {[%clk 0:00:07]} 84. Kf6 {[%clk 0:00:06]}  Rh1 {[%clk 0:00:07]} 85. Rg5+ {[%clk 0:00:06]}  Kh8 {[%clk 0:00:07]} 86. Nf7+ {[%clk 0:00:06]}  Kh7 {[%clk 0:00:07]} 87. Rg7# {[%clk 0:00:07]} 1-0


[Site "https://www.chess.com"]